Cogmind - Beta 12 @@@ ROGUE MODE // 2023.04.21 @ 11:47:19 Player: btmk16 Result: Destroyed by P-70 Sage with Tesla Rifle Performance ------------- Evolutions (5) 2500 Regions Visited (16) 3200 Robots Destroyed (201) 1005 Value Destroyed (5291) 5291 Prototype IDs (26) 520 Alien Tech Used (0) 0 Bonus (-711) -711 TOTAL SCORE: 11805 Bonus ------- High Alert Combat Kills 59 Follower Combat Kills 416 Met Data Miner 300 Met Imprinter 300 Friendly Fire -1786 Cogmind --------- Core Integrity 0/1000 Matter 205/300 Energy 99/100 System Corruption 7% Temperature Cool (0) Movement Core (50) Location -5/Factory Parts ------- > --- POWER (1) -------- (None) > --- PROPULSION (5) --- (None) > --- UTILITY (9) ------ Improved Coolant Injector (fused) Improved Signal Interpreter Improved Terrain Scan Processor Makeshift Hacking Suite Improved Hacking Suite > --- WEAPON (2) ------- (None) > --- INVENTORY (5) ---- YI-UF0's Bottomless Matter Pit (1437) Improved Reaction Control System Light Regenerative Plating Light Regenerative Plating Phasing AFG Peak State ------------ > --- POWER ------------ F-cell Engine > --- PROPULSION ------- Airjet Improved Gravmag System Gravmag Array > --- UTILITY ---------- Medium Storage Unit Improved Signal Interpreter Advanced Terrain Scanner Improved Terrain Scan Processor Light Regenerative Plating Makeshift Hacking Suite Improved Hacking Suite Phasing AFG > --- WEAPON ----------- Great Maul Ripper > --- INVENTORY -------- YI-UF0's Bottomless Matter Pit Improved Terrain Scanner Improved Reaction Control System Light Regenerative Plating Heart of Steel Bore Cannon Rocket Launcher CR-A16's Pointy Stick [Rating: 76] Favorites ----------- Power Improved Ion Engine Engine Improved Ion Engine Power Core Light Nuclear Core Propulsion Light Treads Treads Light Treads Wheel Wheel Hover Unit Gravmag System Flight Unit VTOL Module Utility Hacking Suite Device Improved Terrain Scanner Storage Huge Storage Unit Processor Advanced Targeting Computer Hackware Hacking Suite Protection Layered Light Armor Plating Weapon Heavy Particle Gun Energy Gun Heavy Particle Gun Ballistic Gun Gauss Rifle Ballistic Cannon Bore Cannon Launcher Grenade Launcher Impact Weapon Great Maul Slashing Weapon Greatsword Build | -11 -10 -10 -10 -9 -8 -7 -7 -7 -7 -6 -6 -6 -6 -6 -5 -5 ------- Run | Jun Mat Min Exi Min Mat Fac Low Low Dat Pro Fac Low Low Zio Pro Fac Slots Evolved 10 | . . . . . 4 2 . . . . 2 . . . . 2 Power . | . . . . . . . . . . . . . . . . . Propulsion 3 | . . . . . 2 . . . . . . . . . . 1 Utility 7 | . . . . . 2 2 . . . . 2 . . . . 1 Weapon . | . . . . . . . . . . . . . . . . . Parts Attached 184 | 7 7 2 . 6 23 31 20 8 . 2 33 6 4 7 4 24 Power 12 | 1 1 . . 1 3 1 . 1 . . 3 . . . . 1 Engine 10 | 1 1 . . 1 3 . . . . . 3 . . . . 1 Core 2 | . . . . . . 1 . 1 . . . . . . . . Reactor . | . . . . . . . . . . . . . . . . . Propulsion 50 | 2 2 . . 2 9 8 2 1 . . 9 . 1 2 1 11 Treads 28 | 2 2 . . 2 9 8 2 1 . . . . . . . 2 Leg . | . . . . . . . . . . . . . . . . . Wheel 4 | . . . . . . . . . . . . . . . . 4 Hover 13 | . . . . . . . . . . . 5 . 1 1 1 5 Flight 5 | . . . . . . . . . . . 4 . . 1 . . Utility 73 | 2 3 2 . 1 6 14 10 2 . . 15 6 . 4 1 7 Device 39 | 1 1 1 . 1 2 9 7 1 . . 6 4 . 4 . 2 Storage 7 | 1 2 1 . . 1 . . . . . 2 . . . . . Processor 7 | . . . . . . 3 . . . . 2 . . . . 2 Hackware 8 | . . . . . . . 1 . . . 4 1 . . 1 1 Protection 12 | . . . . . 3 2 2 1 . . 1 1 . . . 2 Artifact . | . . . . . . . . . . . . . . . . . Weapon 49 | 2 1 . . 2 5 8 8 4 . 2 6 . 3 1 2 5 Energy Gun 11 | 1 . . . 2 3 3 . . . . . . 1 . . 1 Energy Cannon . | . . . . . . . . . . . . . . . . . Ballistic Gun 17 | 1 1 . . . . 3 4 3 . 2 3 . . . . . Ballistic Cannon 4 | . . . . . 1 . . . . . . . . . 1 2 Launcher 11 | . . . . . 1 1 4 1 . . 2 . 1 . 1 . Special Weapon . | . . . . . . . . . . . . . . . . . Impact Weapon 2 | . . . . . . 1 . . . . . . 1 . . . Slashing Weapon 4 | . . . . . . . . . . . 1 . . 1 . 2 Piercing Weapon . | . . . . . . . . . . . . . . . . . Special Melee Weapon . | . . . . . . . . . . . . . . . . . Unidentified Prototypes 9 | . . 1 . . 2 1 1 . . . 3 . . 1 . . Corrupted Parts 1 | . . . . . . . . 1 . . . . . . . . System Corruption 10 | . . . . . . . . 10 . . . . . . . . Parts Lost 45 | . . . . . 1 5 5 4 . . 8 . 3 . 4 15 Power 6 | . . . . . 1 1 . 1 . . 1 . . . . 2 Propulsion 18 | . . . . . . 3 1 . . . 3 . 3 . 2 6 Utility 15 | . . . . . . . 4 2 . . 4 . . . 1 4 Weapon 6 | . . . . . . 1 . 1 . . . . . . 1 3 Highest Loss Streak 8 | . . . . . 1 2 2 3 . . 2 . 2 . 4 8 To Critical Strikes . | . . . . . . . . . . . . . . . . . Average Slot Usage (%) 94 | . 100 100 71 99 100 99 98 92 84 100 92 90 87 90 84 64 Engine 6 | . 14 14 14 14 9 4 . . . . 2 6 6 6 6 3 Core 1 | . . . . . . 1 7 6 7 7 2 . . . . . Treads 22 | . 28 28 28 28 36 29 30 30 30 30 9 . . . . 3 Hover 4 | . . . . . . . . . . . 12 26 19 14 12 5 Device 12 | . 14 14 14 13 18 14 15 6 7 7 13 11 13 13 6 1 Storage 8 | . 14 14 14 14 9 7 7 7 7 7 5 6 6 6 6 4 Processor 7 | . . . . . . 15 10 7 7 7 4 13 13 13 13 11 Hackware 5 | . . . . . . . 2 7 7 7 18 13 13 13 19 15 Protection 6 | . . . . . 9 7 7 11 15 15 8 5 6 6 6 3 Energy Gun 7 | . 14 14 . 28 17 11 . . . . . . 1 . . . Ballistic Gun 6 | . 14 14 . . . 3 14 12 . 15 5 . . . . . Naked Turns . | . . . . . . . . . . . . . . . . . Heaviest Build 109 | 14 32 32 32 34 103 109 109 103 94 103 105 37 36 35 40 46 Greatest Support 98 | 40 40 40 40 40 86 98 98 90 90 90 90 37 39 38 31 36 Greatest Overweight (x) 6 | . . . . . 1 1 1 1 1 1 4 . 1 1 1 6 Average Overweight (x) . | . . . . . . . . . 1 1 . . . . 1 . Largest Inventory Capacity 25 | 8 15 15 15 15 25 25 25 25 25 25 25 10 10 10 10 10 Average Capacity 17 | 6 10 15 15 15 18 25 25 25 25 25 15 10 10 10 10 9 Most Carried 25 | 8 14 15 15 15 22 25 25 25 25 25 25 10 10 10 10 10 Average Carried 16 | 4 9 14 15 14 15 23 24 22 25 23 14 9 7 9 9 8 Final Capacity 25 | 8 15 15 15 15 25 25 25 25 25 25 10 10 10 10 10 5 Final Carried 25 | 8 14 15 15 15 22 25 23 25 25 25 10 10 8 10 9 5 Class Distribution -------------------- 43% | Mutant 36% | Scavenger-Mutant 17% | Hacker-Mutant Dominant Class ---------------- Mutant | -10/Materials Mutant | -10/Mines Mutant | -10/Exiles Scavenger-Mutant | -9/Mines Mutant | -8/Materials Mutant | -7/Factory Scavenger-Mutant | -7/Lower Caves Scavenger-Mutant | -7/Lower Caves Scavenger-Mutant | -7/Data Miner Scavenger-Mutant | -6/Proximity Caves Scavenger-Mutant | -6/Factory Scavenger-Mutant | -6/Lower Caves Hacker-Mutant | -6/Lower Caves Hacker-Mutant | -6/Zion Hacker-Mutant | -5/Proximity Caves Hacker-Mutant | -5/Factory Resources | -11 -10 -10 -10 -9 -8 -7 -7 -7 -7 -6 -6 -6 -6 -6 -5 -5 ----------- Run | Jun Mat Min Exi Min Mat Fac Low Low Dat Pro Fac Low Low Zio Pro Fac Matter Collected 10064 | 276 191 543 450 790 286 398 2160 192 . 361 2270 904 89 65 234 855 Remotely 132 | 75 57 . . . . . . . . . . . . . . . Salvage Created 8457 | 84 494 357 . 448 896 1617 536 177 . 56 2395 468 38 . 182 709 Parts 413 | 5 47 22 . 16 49 86 11 7 . 2 123 9 3 . 3 30 Haulers Intercepted 10 | . 2 . . . 3 2 . . . . 2 . . . . 1 Recyclers Shooed 14 | . . . . 1 1 1 . . . . 7 . . . . 4 Parts Field Recycled . | . . . . . . . . . . . . . . . . . Retrieved Matter . | . . . . . . . . . . . . . . . . . Parts Self-Destructed 28 | . . . . . . . 4 8 . 3 . 4 6 . 3 . Prevented 7 | . . . . . . . . 4 . 3 . . . . . . Kills | -11 -10 -10 -10 -9 -8 -7 -7 -7 -7 -6 -6 -6 -6 -6 -5 -5 ------- Run | Jun Mat Min Exi Min Mat Fac Low Low Dat Pro Fac Low Low Zio Pro Fac Combat Hostiles Destroyed 110 | . 13 2 . 4 17 25 13 4 . 1 16 . 4 . 5 6 Melee 4 | . . . . . . . . . . . 4 . . . . . Guns 62 | . 13 2 . 4 9 19 2 3 . 1 9 . . . . . Cannons 10 | . . . . . 1 . . . . . . . . . 3 6 AOE 30 | . . . . . 5 4 11 1 . . 3 . 4 . 2 . Classes Destroyed 18 | 2 6 1 . . 2 1 . 2 . 1 2 1 . . . . Worker 19 | . . 3 . . 2 4 . . . . 9 . . . . 1 Builder 19 | . 1 2 . 1 . 2 . . . . 10 . . . . 3 Tunneler 9 | 1 1 3 . 1 1 . . . . . 1 . . . . 1 Hauler 10 | . 2 . . . 3 2 . . . . 2 . . . . 1 Recycler 21 | 1 . 1 . 4 . 4 . . . . 8 . . . . 3 Minesweeper 1 | . . . . . . . . 1 . . . . . . . . Mechanic 1 | . . . . . . . . . . . 1 . . . . . Operator 4 | . 1 . . . 1 . . . . . 1 . . . . 1 Watcher 4 | . 1 . . . 1 . . . . . 2 . . . . . Swarmer 31 | . 8 2 . 2 3 4 5 . . . 2 . 4 . 1 . Grunt 47 | . 5 . . 3 8 11 7 2 . . 6 . . . 3 2 Brawler 2 | . . . . . . . . 1 . . 1 . . . . . Duelist 1 | . . . . . . . . . . . 1 . . . . . Sentry 14 | . . . . . 5 4 1 . . . 2 . . . 1 1 Hunter 6 | . . . . . 1 1 . 1 . . . . . . . 3 Programmer 9 | . . . . . . 5 . . . . 4 . . . . . Behemoth 1 | . . . . . . . . . . 1 . . . . . . Decomposer 2 | . . . . . . . 1 . . . . 1 . . . . Samaritan 3 | . . . . . . . . . . . . 3 . . . . Savage 1 | . . . . . . . . . . . . 1 . . . . Best Kill Streak 9 | 1 3 3 . 2 6 5 5 3 . 1 8 . 4 . 2 9 Combat Bots Only 6 | . 3 1 . 2 6 4 5 2 . 1 3 . 4 . 2 2 Max Kills in Single Turn 3 | 1 1 1 . 1 3 2 3 1 . 1 1 1 1 . 1 1 Gunslinging . | . . . . . . . . . . . . . . . . . Exploded 3 | . . . . . 3 2 3 1 . . 1 . 1 . 1 . Melee 1 | . . . . . . . . . . . 1 . . . . . Uniques/NPCs Destroyed 1 | . . 1 . . . . . . . . . . . . . . YI-UF0 (-10/Mines) Combat | -11 -10 -10 -10 -9 -8 -7 -7 -7 -7 -6 -6 -6 -6 -6 -5 -5 -------- Run | Jun Mat Min Exi Min Mat Fac Low Low Dat Pro Fac Low Low Zio Pro Fac Damage Taken 9356 | . 301 62 . 139 876 1543 1022 425 . 150 1267 40 262 . 527 2742 Core 1683 | . 57 6 . 7 93 118 85 39 . . 144 . 35 . 94 1005 Absorbed by Shields 55 | . . . . . . . . . . . . . . . . 55 Regen/Repaired (Parts) 436 | . . . . . . . . . . . 76 27 54 44 120 115 Core Remaining (%) 77 | 100 . . . 72 83 . . . . 65 . . . . 67 . Volleys Fired 513 | 6 38 44 . 30 72 105 24 19 . 7 57 . 4 . 44 63 Largest 2 | 2 2 2 . 2 2 2 2 2 . 2 2 . 1 . 1 1 Hottest 130 | 70 70 70 . 130 130 110 63 56 . 58 60 . 33 . 57 57 Shots Fired 883 | 12 76 88 . 60 135 206 40 32 . 15 108 . 4 . 44 63 Gun 738 | 12 76 88 . 60 125 203 29 28 . 15 102 . . . . . Cannon 109 | . . . . . 6 . . . . . . . . . 40 63 Launcher 36 | . . . . . 4 3 11 4 . . 6 . 4 . 4 . Special . | . . . . . . . . . . . . . . . . . Kinetic 404 | 6 39 44 . . 6 32 29 28 . 15 102 . . . 40 63 Thermal 443 | 6 37 44 . 60 125 171 . . . . . . . . . . Explosive 36 | . . . . . 4 3 11 4 . . 6 . 4 . 4 . Electromagnetic . | . . . . . . . . . . . . . . . . . Robot Hit Streak 16 | 6 8 5 . 14 13 16 15 10 . 3 16 . 6 . 4 7 Robot Miss Streak 11 | 2 3 8 . 11 3 4 2 1 . 1 2 . 1 . 3 6 Penetration Max 1 | . . . . . . . . . . . 1 . . . . 1 Secondary Targets 8 | . 1 2 . . 1 3 . . . . 1 . . . . . Max Gunslinging Chain 1 | . 1 1 . . 1 1 . . . . 1 . . . . . Shots Hit Robots 635 | 7 47 48 . 33 91 155 29 25 . 10 118 15 3 . 12 42 Core Hits 328 | 5 25 19 . 15 37 71 31 9 . 5 65 6 5 . 12 23 Critical Kills 8 | . 1 . . . . 1 1 . . . 2 . . . 2 1 Critical Parts Destroyed 5 | . . . . . . . . . . . 2 . . . 2 1 Critical Strikes 28 | . 3 1 . . 2 6 1 1 . . 6 . . . 5 3 Burn 10 | . 2 1 . . 2 5 . . . . . . . . . . Destroy 15 | . 1 . . . . 1 1 1 . . 4 . . . 5 2 Blast 1 | . . . . . . . . . . . . . . . . 1 Sever 2 | . . . . . . . . . . . 2 . . . . . Melee Attacks 124 | . . . . . . . . . . . 80 18 5 1 3 17 Impact 13 | . . . . . . . . . . . . . 5 . 3 5 Slashing 111 | . . . . . . . . . . . 80 18 . 1 . 12 Piercing . | . . . . . . . . . . . . . . . . . Sneak Attacks 39 | . . . . . . . . . . . 23 9 . . . 7 Combat Hostiles . | . . . . . . . . . . . . . . . . . Follow-up Attacks . | . . . . . . . . . . . . . . . . . Damage Inflicted 19818 | 74 609 611 . 560 2335 3546 1420 551 . 211 5838 1353 314 . 388 2008 Guns 9460 | 74 608 611 . 558 1768 3068 352 325 . 211 1885 . . . . . Cannons 1625 | . . . . . 108 . . . . . . . . . 166 1351 Explosions 3260 | . . . . . 451 478 1068 226 . . 501 . 314 . 222 . Melee 5462 | . . . . . . . . . . . 3452 1353 . . . 657 Ramming 11 | . 1 . . 2 8 . . . . . . . . . . . Kinetic 5521 | 23 305 311 . . 108 484 352 325 . 211 1885 . . . 166 1351 Thermal 5564 | 51 303 300 . 558 1768 2584 . . . . . . . . . . Explosive 3260 | . . . . . 451 478 1068 226 . . 501 . 314 . 222 . Electromagnetic . | . . . . . . . . . . . . . . . . . Impact 34 | . . . . . . . . . . . . . . . . 34 Slashing 5428 | . . . . . . . . . . . 3452 1353 . . . 623 Piercing . | . . . . . . . . . . . . . . . . . Highest Corruption 21 | . 1 1 1 1 . 3 6 21 21 21 3 3 3 3 . 7 Average Corruption 5 | . 1 1 1 1 . 1 5 18 21 21 2 3 3 3 . 5 Corruption Purged 5 | . . . . . . 4 1 . . . . . . . . . Corruption Blocked . | . . . . . . . . . . . . . . . . . Effects 174 | . 9 10 2 11 . 6 42 20 6 44 4 6 6 3 . 5 Message Errors 44 | . 3 2 . 3 . 1 9 8 2 12 1 2 . 1 . . Matter Fused 54 | . 3 3 1 2 . . 15 5 3 12 . 3 2 2 . 3 Heat Flow Errors 18 | . 1 1 . 1 . 1 4 1 . 8 . . . . . 1 Energy Discharges 25 | . . 1 1 3 . 2 8 2 1 5 1 . 1 . . . Parts Fused 1 | . . . . . . . . . . . . . . . . 1 Data Loss (minor) 19 | . 1 2 . 1 . 2 3 2 . 5 1 1 1 . . . Data Loss (major) 6 | . . 1 . 1 . . . . . 1 1 . 2 . . . Misfires 5 | . 1 . . . . . 1 2 . 1 . . . . . . Alerts 1 | . . . . . . . 1 . . . . . . . . . Weapon Failures 1 | . . . . . . . 1 . . . . . . . . . Overload Shots . | . . . . . . . . . . . . . . . . . Overflow Damage 1435 | . . . . . 10 6 18 . . . 703 455 36 . . 207 Projectiles 33 | . . . . . . . . . . . . . . . . 33 Explosions 71 | . . . . . 10 6 18 . . . 1 . 36 . . . Melee 1331 | . . . . . . . . . . . 702 455 . . . 174 Knockbacks 6 | . . . . . 1 . . . . . . . . . 1 4 Impact 1 | . . . . . 1 . . . . . . . . . . . Kinetic 5 | . . . . . . . . . . . . . . . 1 4 Secondary . | . . . . . . . . . . . . . . . . . Self-Inflicted Damage 295 | . . . . . 40 . 79 67 . . . . 71 . 38 . Shots 16 | . . . . . 2 . 5 3 . . . . 3 . 3 . Rammed 5 | . 1 . . 1 3 . . . . . . . . . . . Targets Rammed 5 | . 1 . . 1 3 . . . . . . . . . . . Kicked . | . . . . . . . . . . . . . . . . . Crushed . | . . . . . . . . . . . . . . . . . Highest Temperature 522 | 50 123 104 . 522 418 207 211 59 . 283 5 . 11 . 154 159 Average Temperature 66 | 23 26 23 . 134 58 33 71 19 . 113 3 . 11 . 64 40 Received Heat Transfer 2172 | . 72 6 . 54 333 453 171 54 . 12 291 . 39 . 162 525 Effects 8 | . . . . 5 . . . . . 3 . . . . . . Shutdowns 1 | . . . . 1 . . . . . . . . . . . . Interference 6 | . . . . 3 . . . . . 3 . . . . . . Matter Decay 1 | . . . . 1 . . . . . . . . . . . . Siege Activations . | . . . . . . . . . . . . . . . . . Robots Corrupted . | . . . . . . . . . . . . . . . . . Combat Hostiles . | . . . . . . . . . . . . . . . . . Parts Fried 2 | . . . . . . . . . . . . . . . . 2 Impact Corruptions 1 | . . . . . . . . . . . . . . . . 1 Robots Melted 4 | . . . . . 2 2 . . . . . . . . . . Combat Hostiles 4 | . . . . . 2 2 . . . . . . . . . . Parts Melted 27 | . 4 3 . 3 2 15 . . . . . . . . . . Heat Transferred 12025 | 148 1036 962 . 1295 3478 5106 . . . . . . . . . . Parts Sabotaged . | . . . . . . . . . . . . . . . . . Parts Stolen . | . . . . . . . . . . . . . . . . . Parts Stripped . | . . . . . . . . . . . . . . . . . Power Chain Reactions . | . . . . . . . . . . . . . . . . . Missiles Intercepted . | . . . . . . . . . . . . . . . . . Alert | -11 -10 -10 -10 -9 -8 -7 -7 -7 -7 -6 -6 -6 -6 -6 -5 -5 ------- Run | Jun Mat Min Exi Min Mat Fac Low Low Dat Pro Fac Low Low Zio Pro Fac Peak Influence 814 | 10 254 105 . 120 331 393 . . . . 454 . . . . 814 Initial 99 | . 6 51 . . . 99 . . . . . . . . . . Average 170 | 4 96 39 . 27 178 203 . . . . 253 . . . . 424 Maximum Alert Level 3 | . 1 . . . 1 1 . . . . 2 . . . . 3 Low Security (%) 64 | 100 92 100 . 100 60 51 . . . . 37 . . . . 29 Level 1 27 | . 7 . . . 39 48 . . . . 46 . . . . 3 Level 2 7 | . . . . . . . . . . . 15 . . . . 62 Level 3 . | . . . . . . . . . . . . . . . . 3 Level 4 . | . . . . . . . . . . . . . . . . . Level 5 . | . . . . . . . . . . . . . . . . . High Security . | . . . . . . . . . . . . . . . . . Max Security . | . . . . . . . . . . . . . . . . . Squads Dispatched 38 | . 4 . . . 3 10 . . . . 12 . . . . 9 Investigation 10 | . 3 . . . 1 2 . . . . 2 . . . . 2 Extermination 11 | . . . . . . 5 . . . . 4 . . . . 2 Reinforcement 10 | . 1 . . . 2 2 . . . . 3 . . . . 2 Assault . | . . . . . . . . . . . . . . . . . Garrison 7 | . . . . . . 1 . . . . 3 . . . . 3 Intercept . | . . . . . . . . . . . . . . . . . Searches Triggered 2 | . . . . . . . . . . . 2 . . . . . Construction Impeded 3 | . . . . . . . . . . . 2 . . . . 1 Haulers Reinforced 2 | . . . . . . . . . . . 1 . . . . 1 Active Scanning Responses . | . . . . . . . . . . . . . . . . . Cargo Convoy Interrupts . | . . . . . . . . . . . . . . . . . Stealth | -11 -10 -10 -10 -9 -8 -7 -7 -7 -7 -6 -6 -6 -6 -6 -5 -5 --------- Run | Jun Mat Min Exi Min Mat Fac Low Low Dat Pro Fac Low Low Zio Pro Fac Distress Signals 12 | . . . . . 5 3 . . . . 2 . . . . 2 Communications Jammed . | . . . . . . . . . . . . . . . . . Distress Signals . | . . . . . . . . . . . . . . . . . Times Spotted 244 | . 24 9 . 6 29 44 13 8 . 1 37 2 15 . 5 51 Peak Tracking Total 12 | . 4 3 . 2 6 8 5 4 . 1 6 1 7 . 3 12 Tactical Retreats 27 | . 2 . . . 1 1 . 1 . . 10 1 2 . . 9 Traps | -11 -10 -10 -10 -9 -8 -7 -7 -7 -7 -6 -6 -6 -6 -6 -5 -5 ------- Run | Jun Mat Min Exi Min Mat Fac Low Low Dat Pro Fac Low Low Zio Pro Fac Traps Triggered 7 | . 4 . . . . . . . . . . . . . . 3 Indirectly . | . . . . . . . . . . . . . . . . . Trap Hack Attempts . | . . . . . . . . . . . . . . . . . Triggered . | . . . . . . . . . . . . . . . . . Disarmed . | . . . . . . . . . . . . . . . . . Reprogrammed . | . . . . . . . . . . . . . . . . . Reused . | . . . . . . . . . . . . . . . . . Traps Extracted . | . . . . . . . . . . . . . . . . . Installed . | . . . . . . . . . . . . . . . . . Triggered 5 | . . . . . . . . 3 . 1 . . . . 1 . Machines | -11 -10 -10 -10 -9 -8 -7 -7 -7 -7 -6 -6 -6 -6 -6 -5 -5 ---------- Run | Jun Mat Min Exi Min Mat Fac Low Low Dat Pro Fac Low Low Zio Pro Fac Machines Disabled 11 | . . . . . 2 4 . . . . . 1 . . . 4 Max in Single Turn 3 | . . . . . 1 3 . . . . . 1 . . . 1 Garrison Access 2 | . . . . . . 1 . . . . . . . . . 1 Machines Repaired . | . . . . . . . . . . . . . . . . . Machines Sabotaged . | . . . . . . . . . . . . . . . . . Overloaded Fab Kills . | . . . . . . . . . . . . . . . . . Hacking | -11 -10 -10 -10 -9 -8 -7 -7 -7 -7 -6 -6 -6 -6 -6 -5 -5 --------- Run | Jun Mat Min Exi Min Mat Fac Low Low Dat Pro Fac Low Low Zio Pro Fac Machines Accessed 37 | . 6 . 1 . 6 7 1 1 3 . 7 1 . . . 4 Terminals 20 | . 5 . . . 6 3 . . . . 4 . . . . 2 Fabricators 3 | . . . . . . 1 . . . . 2 . . . . . Repair Stations . | . . . . . . . . . . . . . . . . . Recycling Units 2 | . 1 . . . . 1 . . . . . . . . . . Scanalyzers . | . . . . . . . . . . . . . . . . . Garrison Access 5 | . . . . . . 2 . . . . 1 . . . . 2 Total Hacks 96 | . 10 . 1 . 13 15 1 1 25 . 20 1 . . . 9 Successful 56 | . 4 . 1 . 8 3 1 1 25 . 10 1 . . . 2 Failed 40 | . 6 . . . 5 12 . . . . 10 . . . . 7 Catastrophic 6 | . . . . . 1 3 . . . . 1 . . . . 1 Database Lockouts . | . . . . . . . . . . . . . . . . . Manual 25 | . 6 . . . 4 5 . . . . 5 . . . . 5 Terminals 42 | . 9 . . . 13 6 . . . . 9 . . . . 5 Fabricators 11 | . . . . . . 2 . . . . 9 . . . . . Repair Stations . | . . . . . . . . . . . . . . . . . Recycling Units 3 | . 1 . . . . 2 . . . . . . . . . . Scanalyzers . | . . . . . . . . . . . . . . . . . Garrison Access 11 | . . . . . . 5 . . . . 2 . . . . 4 Terminal Hacks 43 | . 3 . 1 . 8 . 1 1 25 . 2 1 . . . 1 Record 7 | . . . 1 . . . . . 6 . . . . . . . Part Schematic 11 | . . . . . . . . . 11 . . . . . . . Robot Schematic 6 | . . . . . . . . . 5 . 1 . . . . . Robot Analysis 3 | . 1 . . . 2 . . . . . . . . . . . Prototype ID Bank 6 | . 1 . . . 2 . . . 3 . . . . . . . Open Door 3 | . . . . . . . 1 1 . . . 1 . . . . Level Access Points 1 | . . . . . . . . . . . 1 . . . . . Branch Access Points 2 | . 1 . . . . . . . . . . . . . . 1 Emergency Access Points 1 | . . . . . 1 . . . . . . . . . . . Alert Level 1 | . . . . . 1 . . . . . . . . . . . Transport Status 1 | . . . . . 1 . . . . . . . . . . . Zone Layout 1 | . . . . . 1 . . . . . . . . . . . Fabricator Hacks 6 | . . . . . . 1 . . . . 5 . . . . . Network Status 2 | . . . . . . 1 . . . . 1 . . . . . Load Schematic 2 | . . . . . . . . . . . 2 . . . . . Build 2 | . . . . . . . . . . . 2 . . . . . Repair Station Hacks . | . . . . . . . . . . . . . . . . . Recycling Unit Hacks 1 | . 1 . . . . . . . . . . . . . . . Retrieve Components 1 | . 1 . . . . . . . . . . . . . . . Scanalyzer . | . . . . . . . . . . . . . . . . . Garrison Access Hacks 2 | . . . . . . 1 . . . . . . . . . 1 Seal Access 2 | . . . . . . 1 . . . . . . . . . 1 Unauthorized Hacks 4 | . . . . . . 1 . . . . 3 . . . . . Terminals 3 | . . . . . . 1 . . . . 2 . . . . . Assimilate 1 | . . . . . . . . . . . 1 . . . . . Botnet 2 | . . . . . . 1 . . . . 1 . . . . . Fabricators 1 | . . . . . . . . . . . 1 . . . . . Prioritize 1 | . . . . . . . . . . . 1 . . . . . Repair Stations . | . . . . . . . . . . . . . . . . . Recycling Units . | . . . . . . . . . . . . . . . . . Scanalyzers . | . . . . . . . . . . . . . . . . . Garrison Access . | . . . . . . . . . . . . . . . . . Data Cores Recovered 1 | . . . . . . . . . . . 1 . . . . . Used 1 | . . . . . . . . . . . 1 . . . . . Hacking Detections 22 | . 4 . . . 4 4 . . . . 7 . . . . 3 Full Trace Events 7 | . 1 . . . 1 2 . . . . 2 . . . . 1 Feedback Events . | . . . . . . . . . . . . . . . . . Feedback Blocked . | . . . . . . . . . . . . . . . . . Robot Schematics Acquired 8 | . . . . . . . . . 5 . 1 . . 2 . . Robots Built . | . . . . . . . . . . . . . . . . . Authchips . | . . . . . . . . . . . . . . . . . Time . | . . . . . . . . . . . . . . . . . Total Robot Build Rating . | . . . . . . . . . . . . . . . . . Part Schematics Acquired 25 | . . . . . . . . . 11 . . . . 14 . . Parts Built 2 | . . . . . . . . . . . 2 . . . . . Authchips . | . . . . . . . . . . . . . . . . . Time 114 | . . . . . . . . . . . 114 . . . . . Total Part Build Rating 10 | . . . . . . . . . . . 10 . . . . . Parts Repaired . | . . . . . . . . . . . . . . . . . Time . | . . . . . . . . . . . . . . . . . Parts Recycled . | . . . . . . . . . . . . . . . . . Recycled Matter . | . . . . . . . . . . . . . . . . . Retrieved Matter . | . . . . . . . . . . . . . . . . . Retrieved Components 8 | . 8 . . . . . . . . . . . . . . . Parts Scanalyzed . | . . . . . . . . . . . . . . . . . Part Schematics Acquired . | . . . . . . . . . . . . . . . . . Parts Damaged . | . . . . . . . . . . . . . . . . . Bothacking | -11 -10 -10 -10 -9 -8 -7 -7 -7 -7 -6 -6 -6 -6 -6 -5 -5 ------------ Run | Jun Mat Min Exi Min Mat Fac Low Low Dat Pro Fac Low Low Zio Pro Fac Used RIF Installer . | . . . . . . . . . . . . . . . . . Robots Hacked . | . . . . . . . . . . . . . . . . . Non-combat . | . . . . . . . . . . . . . . . . . Combat . | . . . . . . . . . . . . . . . . . Robot Hacks Applied . | . . . . . . . . . . . . . . . . . Relay Couplers Released . | . . . . . . . . . . . . . . . . . Fabnet Peak Effective % . | . . . . . . . . . . . . . . . . . Robots Rewired . | . . . . . . . . . . . . . . . . . Allies Hacked . | . . . . . . . . . . . . . . . . . Hacks Repelled . | . . . . . . . . . . . . . . . . . Allies | -11 -10 -10 -10 -9 -8 -7 -7 -7 -7 -6 -6 -6 -6 -6 -5 -5 -------- Run | Jun Mat Min Exi Min Mat Fac Low Low Dat Pro Fac Low Low Zio Pro Fac Total Allies 7 | . . 3 . 1 . . . . . 1 1 . . . . 1 Largest Group 3 | . . 3 1 2 . . . . . 1 1 . . . . 1 Highest-Rated Group 99 | . . 40 8 39 . . . . . 96 26 . . . . 99 Highest-Rated Ally 99 | . . 16 8 31 . . . . . 96 26 . . . . 99 Total Orders . | . . . . . . . . . . . . . . . . . Ally Attacks 66 | . . 34 . . . . . . . 6 . . . . . 26 Total Damage 2617 | . . 203 . . . . . . . 215 . . . . . 2199 Kills 22 | . . 6 . . . . . . . . . . . . . 16 Allies Corrupted . | . . . . . . . . . . . . . . . . . Allies Melted . | . . . . . . . . . . . . . . . . . Intel | -11 -10 -10 -10 -9 -8 -7 -7 -7 -7 -6 -6 -6 -6 -6 -5 -5 ------- Run | Jun Mat Min Exi Min Mat Fac Low Low Dat Pro Fac Low Low Zio Pro Fac Robot Analysis Total 3 | . 1 . . . 2 . . . . . . . . . . . Derelict Logs Recovered 7 | . . 1 . 1 . . 1 . . . . 2 . 1 1 . Drone Launches . | . . . . . . . . . . . . . . . . . Drone Recoveries . | . . . . . . . . . . . . . . . . . Exploration | -11 -10 -10 -10 -9 -8 -7 -7 -7 -7 -6 -6 -6 -6 -6 -5 -5 ------------- Run | Jun Mat Min Exi Min Mat Fac Low Low Dat Pro Fac Low Low Zio Pro Fac Turns Passed 16810 | 119 960 1540 443 1132 1354 2679 1920 525 194 893 2192 513 217 828 597 704 Spaces Moved 10302 | 55 491 859 277 630 585 1035 772 197 83 367 1895 843 356 921 367 569 Core 183 | 3 . . . . . . . . . . . . . . . 180 Treads 5638 | 52 491 859 277 630 585 1035 772 197 83 367 276 . . . . 14 Legs . | . . . . . . . . . . . . . . . . . Wheels 141 | . . . . . . . . . . . . . . . . 141 Hover 4048 | . . . . . . . . . . . 1327 843 356 921 367 234 Flight 292 | . . . . . . . . . . . 292 . . . . . Fastest Speed 27 | 50 160 160 160 160 148 156 156 156 236 236 27 48 48 52 110 50 Average Speed 134 | 154 160 160 160 160 177 221 213 233 236 236 73 48 52 87 110 77 Slowest Speed 350 | 160 160 160 160 160 228 236 236 236 236 236 331 48 106 106 111 350 Overloaded Moves . | . . . . . . . . . . . . . . . . . Propulsion Burnouts . | . . . . . . . . . . . . . . . . . Robots Hopped 3 | . . . . . . . 1 . . . 2 . . . . . Cave-ins Triggered 1 | . . . . . . . 1 . . . . . . . . . Exploration Rate (%) 59 | 5 87 99 64 99 59 32 82 28 71 55 38 83 58 87 46 21 Regions Visited 16 Branch Regions 11 Pre-discovered Areas 4 | . . 1 1 . . . . . 1 . . 1 . . . . Known Exits Taken 9 | . 1 . . . 1 1 . . . 1 1 1 1 1 1 . Unknown Exits Taken 7 | 1 . 1 1 1 . . 1 1 1 . . . . . . . Scrap Searched 19 | . . 1 . 2 . . 1 . . 1 . 2 5 4 3 . Spaces Dug 62 | . . . . . . . . . . . 36 2 5 . 12 7 Terrain Destroyed 283 | . . . . . 25 20 32 28 . . 52 2 46 . 47 31 Melee 44 | . . . . . . . . . . . 31 2 5 . 3 3 Projectile 58 | . . . . . . . . . . . 1 . . . 29 28 AOE 181 | . . . . . 25 20 32 28 . . 20 . 41 . 15 . Terrain Rammed . | . . . . . . . . . . . . . . . . . Walls Destroyed . | . . . . . . . . . . . . . . . . . Machines Disabled . | . . . . . . . . . . . . . . . . . Actions | -11 -10 -10 -10 -9 -8 -7 -7 -7 -7 -6 -6 -6 -6 -6 -5 -5 --------- Run | Jun Mat Min Exi Min Mat Fac Low Low Dat Pro Fac Low Low Zio Pro Fac Total 12189 | 75 596 937 278 697 776 1223 1002 235 82 383 2430 915 371 939 505 745 Wait 809 | . 35 29 . 23 54 25 171 2 . 2 318 39 . . 88 23 Move 10281 | 54 490 858 276 629 584 1034 769 196 82 366 1891 842 355 920 366 569 Hop 2 | . . . . . . . 1 . . . 1 . . . . . Pick Up 91 | 8 12 2 . 3 17 11 4 5 . 4 10 4 1 3 . 7 Fast Attach 65 | 7 2 1 . 1 3 5 5 1 . . 12 3 1 7 2 15 Attach 48 | . . 1 . 2 6 6 5 3 . 2 11 1 3 . 1 7 Detach 26 | . 1 . . . 3 . . 2 . . 9 1 1 1 . 8 Swap 72 | . 5 . . 3 14 20 10 4 . . 11 2 . . 1 2 Drop 128 | . 12 2 2 5 20 17 9 3 . 2 30 5 1 7 . 13 Fire 513 | 6 38 44 . 30 72 105 24 19 . 7 57 . 4 . 44 63 Melee 124 | . . . . . . . . . . . 80 18 5 1 3 17 Ram . | . . . . . . . . . . . . . . . . . Kick . | . . . . . . . . . . . . . . . . . Crush 5 | . 1 . . 1 3 . . . . . . . . . . . Escape Stasis 21 | . . . . . . . . . . . . . . . . 21 Rewire 4 | . . . . . . . 4 . . . . . . . . . Trap . | . . . . . . . . . . . . . . . . . Miscellaneous . | . . . . . . . . . . . . . . . . . Route ------- -11/Junkyard -10/Materials (discovered 4 exits: [*Mat x2] / *Min x2) -10/Mines (discovered 3 exits: [*Mat x2] / *Exi) -10/Exiles -9/Mines (discovered 2 exits: *Mat x2) -8/Materials -7/Factory (discovered 3 exits: *Fac / Sto / *Low) -7/Lower Caves -7/Lower Caves -7/Data Miner -6/Proximity Caves -6/Factory (discovered 5 exits: Fac x4 / *Low) -6/Lower Caves (discovered 2 exits: *Low / *Zio) -6/Lower Caves (discovered 2 exits: Fac / *Zio) -6/Zion (discovered 2 exits: [Dee] / *Pro) -5/Proximity Caves -5/Factory (discovered 5 exits: *Fac / Upp x2 / Ext x2) History --------- Turn | Location | Event 12 | -11/Junkyard | Discovered new exit (range 14) 120 | -11/Junkyard | Entered Materials 305 | -10/Materials | Discovered new exit (range 16) 318 | -10/Materials | Build established: Mutant 417 | -10/Materials | Discovered new exit (range 8) 692 | -10/Materials | Discovered new exit (range 14) 933 | -10/Materials | Discovered new exit (range 13) 977 | -10/Materials | Identified exit to Mines 1080 | -10/Materials | Entered Mines 1142 | -10/Mines | Discovered new exit (range 5) 1178 | -10/Mines | Assisted by bots powering up and referring to "LRC-V3" 1232 | -10/Mines | Deemed a non-threat by the Exiles lab entrance 1232 | -10/Mines | Discovered new exit (range 5) 1368 | -10/Mines | Discovered new exit (range 8) 1405 | -10/Mines | YI-UF0 nonchalantly dropped a Grenade Launcher on the ground 1457 | -10/Mines | Destroyed YI-UF0 1466 | -10/Mines | Found Prototype Storage 1466 | -10/Mines | Identified YI-UF0's Bottomless Matter Pit 1811 | -10/Mines | Learned location of 1 exit from Materials 2380 | -10/Mines | Learned location of Storage (-7) 2620 | -10/Mines | Entered Exiles 2620 | -10/Exiles | Accompanied by 1 ally 2660 | -10/Exiles | Met 8R-AWN 2687 | -10/Exiles | Met EX-HEX 2796 | -10/Exiles | Met EX-DEC 2826 | -10/Exiles | Visited The Gauntlet 2919 | -10/Exiles | Learned location of Zion (-6) 3045 | -10/Exiles | Discovered new exit (range 10) 3063 | -10/Exiles | Entered Mines 3063 | -9/Mines | Accompanied by 1 ally 3066 | -9/Mines | Received a Mining Laser from a helpful Derelict 3120 | -9/Mines | A weapon hastily lodged in a ceiling crevice suddenly fell to the ground 3328 | -9/Mines | Discovered new exit (range 14) 3382 | -9/Mines | Joined a pair of Derelicts in attacking an 0b10 outpost 3516 | -9/Mines | Received a Rocket Launcher from a helpful Derelict 3705 | -9/Mines | Build established: Scavenger-Mutant 3895 | -9/Mines | Discovered new exit (range 10) 4195 | -9/Mines | Entered Materials 4195 | -8/Materials | Evolved 4 slots: Propulsion x2, Utility x2 4196 | -8/Materials | Identified exit to Factory 4979 | -8/Materials | Build established: Mutant 5549 | -8/Materials | Entered Factory 5549 | -7/Factory | Evolved 2 slots: Utility x2 5550 | -7/Factory | Identified exit to Storage 7065 | -7/Factory | Garrison activated, responded to threat 7943 | -7/Factory | Discovered new exit (range 19) 8012 | -7/Factory | Identified exit to Factory 8146 | -7/Factory | Discovered new exit (range 6) 8155 | -7/Factory | Identified exit to Lower Caves 8228 | -7/Factory | Entered Lower Caves 8381 | -7/Lower Caves | Encountered a Warlord checkpoint 8599 | -7/Lower Caves | Crushed by falling debris 8645 | -7/Lower Caves | Attracted the attention of an 0b10 checkpoint 8948 | -7/Lower Caves | Build established: Scavenger-Mutant 9209 | -7/Lower Caves | Learned Factory non-interactive machine intel 9306 | -7/Lower Caves | Found Prototype Device 9306 | -7/Lower Caves | Identified Heart of Steel 10115 | -7/Lower Caves | Discovered new exit (range 10) 10148 | -7/Lower Caves | Entered another Lower Caves area 10232 | -7/Lower Caves | System corruption reached 10% 10262 | -7/Lower Caves | Lost 3 parts (2u1w) 10562 | -7/Lower Caves | Discovered new exit (range 5) 10673 | -7/Lower Caves | Entered Data Miner 10673 | -7/Data Miner | Discovered new exit (range 6) 10718 | -7/Data Miner | Met Data Miner 10775 | -7/Data Miner | Learned location of Section 7 (-2) 10775 | -7/Data Miner | Acquired the access code to Warlord's prototype stash 10810 | -7/Data Miner | Received God Mode back door access code from Data Miner 10867 | -7/Data Miner | Entered Proximity Caves 10980 | -6/Proximity Caves | Escorted by Enhanced Grunt 11461 | -6/Proximity Caves | Spotted B-75 Beast 11503 | -6/Proximity Caves | Destroyed B-75 Beast 11628 | -6/Proximity Caves | Discovered exit to Factory (range 5) 11760 | -6/Proximity Caves | Entered Factory 11760 | -6/Factory | Evolved 2 slots: Utility x2 11761 | -6/Factory | Loaded intel: 217 non-interactive machine locations 12222 | -6/Factory | Garrison activated, responded to threat 12989 | -6/Factory | Spotted B-75 Beast 13156 | -6/Factory | Build established: Hacker-Mutant 13160 | -6/Factory | Search patrols dispatched 13283 | -6/Factory | Identified exit to Factory 13473 | -6/Factory | Fabricated Lgt. Regenerative Plating (x1) 13486 | -6/Factory | Fabricated Lgt. Regenerative Plating? 13860 | -6/Factory | Search patrols dispatched 13946 | -6/Factory | Discovered new exit (range 13) 13952 | -6/Factory | Identified exit to Lower Caves 13952 | -6/Factory | Entered Lower Caves 14027 | -6/Lower Caves | Build established: Scavenger-Mutant 14061 | -6/Lower Caves | A Derelict revealed a hidden shortcut to a safe place 14063 | -6/Lower Caves | Identified exit to Zion 14209 | -6/Lower Caves | Learned Factory stockpile data 14236 | -6/Lower Caves | Spotted B-75 Beast 14322 | -6/Lower Caves | Discovered new exit (range 13) 14328 | -6/Lower Caves | Identified exit to Lower Caves 14330 | -6/Lower Caves | Encountered a Warlord checkpoint 14439 | -6/Lower Caves | Attacked by a delusional Derelict stockpiling parts 14465 | -6/Lower Caves | Entered another Lower Caves area 14490 | -6/Lower Caves | Discovered exit to Factory (range 20) 14671 | -6/Lower Caves | Discovered exit to Zion (range 15) 14682 | -6/Lower Caves | Entered Zion 14690 | -6/Zion | Learned location of 1 exit from Factory 14703 | -6/Zion | Build established: Hacker-Mutant 14764 | -6/Zion | Discovered new exit (range 19) 14768 | -6/Zion | Given A8's code to call for help 14850 | -6/Zion | System corruption cleaned by Quarantine Array 14940 | -6/Zion | Received a visual enhancement algorithm 14963 | -6/Zion | Found CR-A16's Pointy Stick 15144 | -6/Zion | Discovered new exit (range 18) 15263 | -6/Zion | Learned Factory terminal intel 15464 | -6/Zion | Found Prototype Device 15464 | -6/Zion | Identified Phasing AFG 15510 | -6/Zion | Identified exit to Proximity Caves 15510 | -6/Zion | Entered Proximity Caves 15512 | -5/Proximity Caves | Attracted the attention of an 0b10 checkpoint 15550 | -5/Proximity Caves | Lost 4 parts (2n1u1w) 15625 | -5/Proximity Caves | Learned Factory stockpile data 15631 | -5/Proximity Caves | Spotted B-75 Beast 15914 | -5/Proximity Caves | Discovered exit to Factory (range 10) 16045 | -5/Proximity Caves | Received a Behemoth hack from an annoying Tinkerer 16107 | -5/Proximity Caves | Entered Factory 16107 | -5/Factory | Evolved 2 slots: Propulsion x1, Utility x1 16108 | -5/Factory | Identified exit to Factory 16110 | -5/Factory | Loaded intel: 28 terminal locations 16309 | -5/Factory | Heart of Steel transformed into Warbot 16650 | -5/Factory | Spotted B-75 Beast 16705 | -5/Factory | Core integrity fell below 50% 16732 | -5/Factory | Lost 8 parts (1p4n2u1w) 16763 | -5/Factory | Identified exit to Upper Caves 16763 | -5/Factory | Identified exit to Extension 16799 | -5/Factory | Core integrity fell below 20% 16811 | -5/Factory | Destroyed by P-70 Sage with Tesla Rifle Last Messages --------------- 16796_ System corrupted: Heat flow error (+133). 16796_ Field strength at 34. 16797_ Field strength at 28. 16798_ Field strength at 16. 16799_ Field strength at 5. 16800_ Stasis field depleted. 16800_ Triggered Stasis Trap. 16800_ A bubble of rippling energy engulfs the area. 16800_ Field strength at 94. 16800_ Field strength at 88. 16801_ Field strength at 76. 16802_ Field strength at 65. 16803_ Field strength at 59. 16804_ Field strength at 42. 16805_ Field strength at 36. 16806_ Field strength at 30. 16807_ Field strength at 13. 16808_ Stasis field depleted. 16809_ M-28 Smith repairs P-70 Sage. 16811_ System corrupted: Imp. Coolant Injector fused. Map ----- +----------------------------------------------------+ | ?????????????????????????????????????????????????# | | ??????????????????????????????????? ?????????????? | | ???????????"""???????????????????????????????????? | | ???????????"T???????????????????????????? ???#???? | | ???????????"""????????????????????????????#???#??? | | ???????????????????????????????????????????#?#???? | | ?????????????????????????????????????????????##??? | | ?????????????????????????????????????????????????? | | ?????????????????????????????????????????????????? | | ?????????????????????????????????????????????????? | | ?????????????????????????????????????????#?????#?? | | ?????????????????????????????????????????????????? | | ????????????????????????????????????????#????????# | | ?????????????????# ??????????????????????????????? | | ?????????????????# ??????????????????????????????? | | ?????????# ??????# ???????????#######????????????? | | ?????????# ?????# ??????????? ???????????? | | ?????????# ?????# ?????????? ???????????# | | ?????????# ????# ?????????? ??????????? | | ?????????? ???# ????????? ??????????? | | ??????????? ??# #######?? ==! ??????????? | | ???????????? ?# #? < =!! #?????????? | | ?????????????? # #? =!! #?????????? | | ??????????????? # # #?????????? | | ????"T"????????? + # k #?????????? | | ????"""??????????#^ @ #?????????? | | ?????????????????# # #?????????? | | ?????????????????# #############???????????? | | ?????????????????# #???????????????????????? | | ????????#####+####pp #???????????????????????? | | ????????# m #???????????????????????? | | ????????# #????????????????######## | | ????????# %/ #????????????????# | | ????????+ // """ """ #????????????????# | | ????????# / """ """ +????????????????# | | ????????# """ """ # ???????????????# | | ????????# # "??????????????# | | ????????## """ """ """ #?""?????????????# | | ?????????# """ """ """ %#????????????????# | | ?????????# """ """ ""? ?????????????????# | | ?????????# #????????????????# | | ?????????# """ """ ""????????????????????# % % | | ?????????# """ """^"????????????????????## | | ?????????# """ """ ""???????????????????#" %% | | ?????????# #??????????#########""#"+ | | ?????????# """ """ ""??????????????# [ "% % | | ?????????# """ """ """ ????????????# # | | ????????## """ """ """ #??????????# """"""" # | | ????????# #??????????# """"""" + | | ????????# """ """ #??????????# """"""" # | +----------------------------------------------------+ Best States ------------- Heat Dissipation 88 Coolant Potential 80 Energy Generation 19 Energy Capacity 500 Matter Stores 300 Matter Capacity 300 Sight Range 22 Robot Scan Range 15 Terrain Scan Range 20 Terrain Scan Density 110 Armor Coverage 450 Resistance: KI 20 Phase Shifting 5 Evasion (%) 65 Targeting Accuracy 8 Recoil Reduction 4 Offensive Hacking 42 Item Schematics ----------------- Combat Drone Bay | -7/Data Miner | Free Lgt. Regenerative Plating | -7/Data Miner | Free Biomechanical Wings | -7/Data Miner | Free Exp. Targeting Computer | -7/Data Miner | Free Force Rifle | -7/Data Miner | Free Arm. Medium Treads | -7/Data Miner | Free Imp. Dynamic Insulation System | -7/Data Miner | Free Imp. Remote Datajack | -7/Data Miner | Free Field Propulsion Array | -7/Data Miner | Free Imp. Shock Absorption System | -7/Data Miner | Free HERF Cannon | -7/Data Miner | Free Enh. Optical Array | -6/Zion | Archive Imp. Component Analysis Suite | -6/Zion | Archive 0b10 Decoder Chip [Generic] | -6/Zion | Archive Adv. Trap Extractor | -6/Zion | Archive Magnetic Acceleration Cannon | -6/Zion | Archive Hyp. Mass Driver | -6/Zion | Archive Recoil Nullifier | -6/Zion | Archive Hvy. Plasma Cannon | -6/Zion | Archive Imp. Cryofiber Web | -6/Zion | Archive Hyp. Coil Gun | -6/Zion | Archive Imp. Recalibrator | -6/Zion | Archive Force Field | -6/Zion | Archive Adv. Thermal Generator | -6/Zion | Archive Tiamat Missile Launcher | -6/Zion | Archive Robot Schematics ------------------ M-14 Sweeper | -7/Data Miner | Free R-10 Processor | -7/Data Miner | Free S-27 Virus | -7/Data Miner | Free W-25 Informer | -7/Data Miner | Free L-41 Fighter | -7/Data Miner | Free H-66 Slayer | -6/Factory | Hacked K-01 Serf | -6/Zion | Archive G-50 Soldier | -6/Zion | Archive Fabricated ------------ Lgt. Regenerative Plating | x1 | -6/Factory Lgt. Regenerative Plating | x1 | -6/Factory Alien Tech Used ----------------- None Achievements -------------- None Challenges ------------ None Game ------ Seed HugeGatlingNullifier Manual? 0 Play Time 01:49:33 Cumulative 647.1 hours Start 2023.04.20 @ 15:22:26 End 2023.04.21 @ 11:47:19 Sessions 1 Manual Loads 0 Difficulty Rogue Special Mode None Game No. 653 Rogue 652 Adventurer 0 Explorer 1 Win Type - Total 31 Types 22/0/6/3/0/0/0/0/0 Lore% 87 Gallery% 92 Achievement% 79 Wizard Run 0 Options --------- ASCII 0 Keyboard 1 Movement Vi Keybinds 0 Fullscreen 1 Font 18/SmallcapsGlow Map View 76x50 Tactical HUD 1 Map Filters NONE Filters NONE Steam 1 RUN: 167dbd74-d5f4-4273-b672-0ed1ec02bd84